[Event "Early-Titled-Tuesday-Blitz-April-16-2024"]
[Site "Chess.com"]
[Date "2024.04.16"]
[Round "9"]
[White "lcmil"]
[Black "littlepinkyboy"]
[Result "1-0"]
[WhiteElo "2523"]
[BlackElo "2654"]
[TimeControl "180+1"]
[EndTime "9:46:42 PDT"]
[Termination "lcmil won by resignation"]

1. e4 {[%clk 0:03:00.9]} 1... c5 {[%clk 0:02:59.3]} 2. Nf3 {[%clk 0:03:00.7]}
2... Nc6 {[%clk 0:02:59.6]} 3. d4 {[%clk 0:03:00.4]} 3... cxd4 {[%clk
0:02:59.7]} 4. Nxd4 {[%clk 0:03:01.3]} 4... g6 {[%clk 0:03:00.2]} 5. Nc3 {[%clk
0:03:00.5]} 5... Bg7 {[%clk 0:02:59.7]} 6. Be3 {[%clk 0:03:01.1]} 6... d6 {[%clk
0:02:52.6]} 7. f3 {[%clk 0:02:48.8]} 7... Nf6 {[%clk 0:02:51.4]} 8. Qd2 {[%clk
0:02:48.3]} 8... O-O {[%clk 0:02:47.1]} 9. g4 {[%clk 0:02:44.1]} 9... Ne5 {[%clk
0:01:44.3]} 10. h4 {[%clk 0:02:29.6]} 10... Bxg4 {[%clk 0:01:00.7]} 11. fxg4
{[%clk 0:02:27.3]} 11... Nfxg4 {[%clk 0:01:01.6]} 12. Bg5 {[%clk 0:02:10.2]}
12... h6 {[%clk 0:00:51.4]} 13. Bf4 {[%clk 0:02:05.9]} 13... Rc8 {[%clk
0:00:51.3]} 14. O-O-O {[%clk 0:01:55.8]} 14... Rxc3 {[%clk 0:00:32.6]} 15. Qxc3
{[%clk 0:01:47.4]} 15... Nf2 {[%clk 0:00:31.9]} 16. Be2 {[%clk 0:01:38.4]} 16...
Nxh1 {[%clk 0:00:29.6]} 17. Rxh1 {[%clk 0:01:37.9]} 17... Nc6 {[%clk 0:00:27.1]}
18. Nxc6 {[%clk 0:01:31.7]} 18... bxc6 {[%clk 0:00:24.8]} 19. Qd2 {[%clk
0:01:30]} 19... Qa5 {[%clk 0:00:22.2]} 20. Qxa5 {[%clk 0:01:29.1]} 1-0

[Event "Early-Titled-Tuesday-Blitz-April-16-2024"]
[Site "Chess.com"]
[Date "2024.04.16"]
[Round "9"]
[White "UK_23"]
[Black "cristiano78"]
[Result "1-0"]
[WhiteElo "2484"]
[BlackElo "2276"]
[TimeControl "180+1"]
[EndTime "9:46:51 PDT"]
[Termination "UK_23 won by resignation"]

1. e4 {[%clk 0:03:00.9]} 1... c5 {[%clk 0:02:59]} 2. Nf3 {[%clk 0:03:00.8]} 2...
d6 {[%clk 0:02:59.3]} 3. d4 {[%clk 0:02:59.7]} 3... cxd4 {[%clk 0:02:58.1]} 4.
Nxd4 {[%clk 0:03:00.6]} 4... Nf6 {[%clk 0:02:58.3]} 5. Nc3 {[%clk 0:03:00.9]}
5... g6 {[%clk 0:02:58]} 6. f3 {[%clk 0:02:54.1]} 6... Bg7 {[%clk 0:02:57.7]} 7.
Be3 {[%clk 0:02:54.2]} 7... O-O {[%clk 0:02:57]} 8. Qd2 {[%clk 0:02:54.3]} 8...
Nc6 {[%clk 0:02:57.9]} 9. Bc4 {[%clk 0:02:53.6]} 9... Bd7 {[%clk 0:02:57.6]} 10.
Bb3 {[%clk 0:02:53.1]} 10... Rc8 {[%clk 0:02:57.5]} 11. O-O-O {[%clk 0:02:50.8]}
11... Ne5 {[%clk 0:02:57.5]} 12. Bh6 {[%clk 0:02:45.3]} 12... Nc4 {[%clk
0:02:55.4]} 13. Bxc4 {[%clk 0:02:44]} 13... Rxc4 {[%clk 0:02:55]} 14. Bxg7
{[%clk 0:02:43]} 14... Kxg7 {[%clk 0:02:54.3]} 15. h4 {[%clk 0:02:41.9]} 15...
h5 {[%clk 0:02:54.2]} 16. g4 {[%clk 0:02:38.2]} 16... Qa5 {[%clk 0:02:48]} 17.
Nb3 {[%clk 0:02:21.8]} 17... Qb4 {[%clk 0:02:35.7]} 18. e5 {[%clk 0:02:13.8]}
18... Ne8 {[%clk 0:02:34.3]} 19. gxh5 {[%clk 0:02:11.6]} 19... Rxh4 {[%clk
0:02:33.2]} 20. Qg5 {[%clk 0:01:59]} 20... Rxh1 {[%clk 0:02:24.2]} 21. Rxh1
{[%clk 0:01:59.9]} 21... Rh8 {[%clk 0:02:09.5]} 22. h6+ {[%clk 0:01:45.1]} 22...
Kh7 {[%clk 0:02:02.3]} 23. Qxe7 {[%clk 0:01:41.2]} 23... Qf4+ {[%clk 0:02:01]}
24. Kb1 {[%clk 0:01:40.7]} 24... Bc6 {[%clk 0:01:46.6]} 25. e6 {[%clk
0:01:17.7]} 25... Qf6 {[%clk 0:01:39.7]} 26. Qxf7+ {[%clk 0:00:57.7]} 26... Qxf7
{[%clk 0:01:39.6]} 27. exf7 {[%clk 0:00:58.6]} 27... Nf6 {[%clk 0:01:39.2]} 28.
Nd4 {[%clk 0:00:50.2]} 28... Rf8 {[%clk 0:01:37.3]} 29. Ne6 {[%clk 0:00:47.1]}
29... Rxf7 {[%clk 0:01:28.7]} 30. Ng5+ {[%clk 0:00:47.3]} 30... Kg8 {[%clk
0:01:28.4]} 31. Nxf7 {[%clk 0:00:47.5]} 31... Kxf7 {[%clk 0:01:28.1]} 32. h7
{[%clk 0:00:47.4]} 1-0

[Event "Early-Titled-Tuesday-Blitz-April-16-2024"]
[Site "Chess.com"]
[Date "2024.04.16"]
[Round "9"]
[White "lamomiajunior"]
[Black "RantomOpening"]
[Result "1-0"]
[WhiteElo "2725"]
[BlackElo "2517"]
[TimeControl "180+1"]
[EndTime "9:46:55 PDT"]
[Termination "lamomiajunior won by resignation"]

1. d4 {[%clk 0:03:00.9]} 1... d5 {[%clk 0:02:50.9]} 2. Nc3 {[%clk 0:03:01.2]}
2... Nf6 {[%clk 0:02:46.8]} 3. Bf4 {[%clk 0:03:01.7]} 3... a6 {[%clk 0:02:44.6]}
4. e3 {[%clk 0:03:02]} 4... e6 {[%clk 0:02:44.4]} 5. g4 {[%clk 0:03:01.9]} 5...
Bd6 {[%clk 0:02:44.4]} 6. Qf3 {[%clk 0:03:01.8]} 6... c5 {[%clk 0:02:43.7]} 7.
g5 {[%clk 0:03:01.7]} 7... Ng8 {[%clk 0:02:38.8]} 8. h4 {[%clk 0:03:02.1]} 8...
Ne7 {[%clk 0:02:37.1]} 9. O-O-O {[%clk 0:03:01.5]} 9... Nbc6 {[%clk 0:02:36.2]}
10. Nge2 {[%clk 0:02:59.2]} 10... Nf5 {[%clk 0:02:34.8]} 11. Bxd6 {[%clk
0:02:55.9]} 11... Qxd6 {[%clk 0:02:31.9]} 12. dxc5 {[%clk 0:02:55.9]} 12... Qxc5
{[%clk 0:02:31.7]} 13. h5 {[%clk 0:02:48.6]} 13... d4 {[%clk 0:02:25.3]} 14.
exd4 {[%clk 0:02:46]} 14... Nfxd4 {[%clk 0:02:25.3]} 15. Nxd4 {[%clk 0:02:45.7]}
15... Nxd4 {[%clk 0:02:25]} 16. Qe3 {[%clk 0:02:46]} 16... e5 {[%clk 0:02:22.5]}
17. h6 {[%clk 0:02:36]} 17... g6 {[%clk 0:02:18.2]} 18. Bd3 {[%clk 0:02:34.5]}
18... Bg4 {[%clk 0:02:03.3]} 19. Rde1 {[%clk 0:02:33.3]} 19... O-O-O {[%clk
0:02:00.8]} 20. Qxe5 {[%clk 0:02:28.5]} 20... Qxe5 {[%clk 0:01:56.3]} 21. Rxe5
{[%clk 0:02:29.4]} 21... Nf3 {[%clk 0:01:54]} 22. Rc5+ {[%clk 0:02:00.9]} 22...
Kb8 {[%clk 0:01:52.7]} 23. Ne4 {[%clk 0:01:56.1]} 23... Bf5 {[%clk 0:01:50]} 24.
b4 {[%clk 0:01:31.4]} 24... Rc8 {[%clk 0:01:48.6]} 25. Rxc8+ {[%clk 0:01:25.1]}
25... Rxc8 {[%clk 0:01:28]} 26. Nd6 {[%clk 0:01:23.6]} 26... Bxd3 {[%clk
0:01:27.2]} 27. Nxc8 {[%clk 0:01:23.4]} 27... Bc4 {[%clk 0:01:25.9]} 28. Nd6
{[%clk 0:01:22.7]} 28... Bxa2 {[%clk 0:01:17.1]} 29. c4 {[%clk 0:01:21]} 29...
Nxg5 {[%clk 0:01:15.7]} 30. Kb2 {[%clk 0:01:17]} 30... Kc7 {[%clk 0:01:13.2]}
31. Rd1 {[%clk 0:01:17.5]} 31... Bxc4 {[%clk 0:01:09.3]} 32. Nxc4 {[%clk
0:01:17.2]} 32... Ne4 {[%clk 0:01:09.8]} 33. Ne5 {[%clk 0:01:16.2]} 33... f6
{[%clk 0:01:01.7]} 34. Nxg6 {[%clk 0:01:11]} 1-0

[Event "Early-Titled-Tuesday-Blitz-April-16-2024"]
[Site "Chess.com"]
[Date "2024.04.16"]
[Round "9"]
[White "GelmanAlexander"]
[Black "zverr1"]
[Result "1/2-1/2"]
[WhiteElo "2656"]
[BlackElo "2512"]
[TimeControl "180+1"]
[EndTime "9:47:05 PDT"]
[Termination "Game drawn by repetition"]

1. c4 {[%clk 0:03:00.9]} 1... c5 {[%clk 0:02:55.3]} 2. Nf3 {[%clk 0:03:00.6]}
2... Nc6 {[%clk 0:02:54]} 3. e3 {[%clk 0:03:01.1]} 3... e5 {[%clk 0:02:51]} 4.
d3 {[%clk 0:03:01.5]} 4... g6 {[%clk 0:02:51.1]} 5. a3 {[%clk 0:03:02.1]} 5...
Bg7 {[%clk 0:02:51.4]} 6. Nc3 {[%clk 0:03:02.8]} 6... Nge7 {[%clk 0:02:51.1]} 7.
Be2 {[%clk 0:03:03.4]} 7... O-O {[%clk 0:02:51.2]} 8. O-O {[%clk 0:03:04.1]}
8... a5 {[%clk 0:02:51.7]} 9. Rb1 {[%clk 0:03:03.5]} 9... d6 {[%clk 0:02:50.7]}
10. b3 {[%clk 0:03:03.8]} 10... h6 {[%clk 0:02:49.5]} 11. Bb2 {[%clk 0:03:04.4]}
11... Be6 {[%clk 0:02:49.7]} 12. Nd2 {[%clk 0:03:04.9]} 12... d5 {[%clk
0:02:44.2]} 13. cxd5 {[%clk 0:03:04.5]} 13... Nxd5 {[%clk 0:02:44.7]} 14. Nxd5
{[%clk 0:02:58.8]} 14... Bxd5 {[%clk 0:02:44.3]} 15. Qc2 {[%clk 0:02:57.7]}
15... Rc8 {[%clk 0:02:41.1]} 16. Bf3 {[%clk 0:02:55.4]} 16... b6 {[%clk
0:02:32.8]} 17. Rfd1 {[%clk 0:02:53.5]} 17... Bxf3 {[%clk 0:02:24]} 18. Nxf3
{[%clk 0:02:53.5]} 18... Qd5 {[%clk 0:02:20.7]} 19. Nd2 {[%clk 0:02:52.4]} 19...
Qe6 {[%clk 0:01:45.6]} 20. h3 {[%clk 0:02:48.8]} 20... Rfd8 {[%clk 0:01:44.5]}
21. Rbc1 {[%clk 0:02:47.7]} 21... Kh7 {[%clk 0:01:42]} 22. Nc4 {[%clk
0:02:47.5]} 22... Ne7 {[%clk 0:01:42]} 23. e4 {[%clk 0:02:46.4]} 23... Rb8
{[%clk 0:01:36]} 24. a4 {[%clk 0:02:46.3]} 24... Nc6 {[%clk 0:01:35.9]} 25. Bc3
{[%clk 0:02:45]} 25... f5 {[%clk 0:01:32.4]} 26. Qe2 {[%clk 0:02:37.9]} 26... f4
{[%clk 0:01:24.2]} 27. Qg4 {[%clk 0:02:33.1]} 27... Qxg4 {[%clk 0:01:21.8]} 28.
hxg4 {[%clk 0:02:34]} 28... g5 {[%clk 0:01:19.8]} 29. Kf1 {[%clk 0:02:33.8]}
29... Kg6 {[%clk 0:01:19.6]} 30. Ke2 {[%clk 0:02:34.1]} 30... Bf6 {[%clk
0:01:16.7]} 31. f3 {[%clk 0:02:32.1]} 31... Rb7 {[%clk 0:01:15.5]} 32. Rh1
{[%clk 0:02:20.1]} 32... Rbb8 {[%clk 0:01:13]} 33. Rh3 {[%clk 0:02:15.5]} 33...
Bg7 {[%clk 0:01:03.6]} 34. Rhh1 {[%clk 0:02:15.1]} 34... Bf6 {[%clk 0:01:03.4]}
35. Na3 {[%clk 0:02:01.6]} 35... Rd7 {[%clk 0:01:01.8]} 36. Nb5 {[%clk
0:02:01.8]} 36... Rbd8 {[%clk 0:01:01]} 37. Rhd1 {[%clk 0:02:02]} 37... Bg7
{[%clk 0:00:59.5]} 38. Na3 {[%clk 0:02:02]} 38... Rb8 {[%clk 0:00:54.8]} 39. Nc4
{[%clk 0:01:58.3]} 39... Bf6 {[%clk 0:00:54.7]} 40. Rg1 {[%clk 0:01:51.6]} 40...
Bg7 {[%clk 0:00:52.2]} 41. Rgd1 {[%clk 0:01:27.7]} 41... Bf6 {[%clk 0:00:52.1]}
42. Rd2 {[%clk 0:01:28.3]} 42... Bg7 {[%clk 0:00:51.1]} 43. Rdd1 {[%clk
0:01:29]} 1/2-1/2

[Event "Early-Titled-Tuesday-Blitz-April-16-2024"]
[Site "Chess.com"]
[Date "2024.04.16"]
[Round "9"]
[White "Vahe_Danielyan"]
[Black "aanshnerurkar"]
[Result "1-0"]
[WhiteElo "2613"]
[BlackElo "2444"]
[TimeControl "180+1"]
[EndTime "9:47:06 PDT"]
[Termination "Vahe_Danielyan won on time"]

1. d4 {[%clk 0:02:59.5]} 1... Nf6 {[%clk 0:02:59.5]} 2. c4 {[%clk 0:02:59.4]}
2... e6 {[%clk 0:02:59.5]} 3. Nc3 {[%clk 0:02:59.1]} 3... Bb4 {[%clk 0:02:58]}
4. Bf4 {[%clk 0:02:59]} 4... O-O {[%clk 0:02:56.5]} 5. Qb3 {[%clk 0:02:58.1]}
5... Bxc3+ {[%clk 0:02:48.6]} 6. Qxc3 {[%clk 0:02:59]} 6... b6 {[%clk
0:02:47.4]} 7. f3 {[%clk 0:02:58]} 7... Bb7 {[%clk 0:02:47.6]} 8. e4 {[%clk
0:02:57.6]} 8... d6 {[%clk 0:02:47.8]} 9. Bd3 {[%clk 0:02:56.2]} 9... Nbd7
{[%clk 0:02:48.2]} 10. Ne2 {[%clk 0:02:54.7]} 10... e5 {[%clk 0:02:47.9]} 11.
Bg3 {[%clk 0:02:54.4]} 11... Nh5 {[%clk 0:02:45.3]} 12. Bf2 {[%clk 0:02:51.2]}
12... exd4 {[%clk 0:02:38.7]} 13. Nxd4 {[%clk 0:02:52.1]} 13... Nf4 {[%clk
0:02:35.5]} 14. Bf1 {[%clk 0:02:49.1]} 14... Ne5 {[%clk 0:02:34.3]} 15. g3
{[%clk 0:02:46.2]} 15... Ne6 {[%clk 0:02:34.1]} 16. O-O-O {[%clk 0:02:45.2]}
16... Nxd4 {[%clk 0:02:21.8]} 17. Bxd4 {[%clk 0:02:44.3]} 17... Qe8 {[%clk
0:02:22]} 18. Bxe5 {[%clk 0:02:41.8]} 18... dxe5 {[%clk 0:02:16.1]} 19. Bh3
{[%clk 0:02:41.3]} 19... Bc6 {[%clk 0:02:15.7]} 20. c5 {[%clk 0:02:39.6]} 20...
b5 {[%clk 0:01:40.3]} 21. Rd2 {[%clk 0:02:39.2]} 21... a5 {[%clk 0:01:39.9]} 22.
Rhd1 {[%clk 0:02:38.3]} 22... Qe7 {[%clk 0:01:39.5]} 23. Bd7 {[%clk 0:02:35.3]}
23... b4 {[%clk 0:01:39.7]} 24. Qc4 {[%clk 0:02:34.6]} 24... Bxd7 {[%clk
0:01:32.9]} 25. Rxd7 {[%clk 0:02:35.5]} 25... Qg5+ {[%clk 0:01:32.4]} 26. Kb1
{[%clk 0:02:35.1]} 26... Qh5 {[%clk 0:01:27]} 27. g4 {[%clk 0:02:33]} 27... Qxh2
{[%clk 0:01:26.3]} 28. Rxc7 {[%clk 0:02:33.3]} 28... a4 {[%clk 0:01:21.6]} 29.
c6 {[%clk 0:02:32.8]} 29... a3 {[%clk 0:01:21.6]} 30. Qc2 {[%clk 0:02:30.3]}
30... Qf4 {[%clk 0:01:18.1]} 31. Rcd7 {[%clk 0:02:26.5]} 31... Qxf3 {[%clk
0:01:08.1]} 32. c7 {[%clk 0:02:25.3]} 32... Qxg4 {[%clk 0:01:06.6]} 33. Rd8
{[%clk 0:02:16.4]} 33... b3 {[%clk 0:00:46]} 34. axb3 {[%clk 0:02:15]} 34... a2+
{[%clk 0:00:17.9]} 35. Ka1 {[%clk 0:02:14.9]} 35... Raxd8 {[%clk 0:00:02]} 36.
cxd8=Q {[%clk 0:02:15.8]} 1-0

[Event "Early-Titled-Tuesday-Blitz-April-16-2024"]
[Site "Chess.com"]
[Date "2024.04.16"]
[Round "9"]
[White "Koalaskakistis"]
[Black "Alexchess1984"]
[Result "0-1"]
[WhiteElo "2564"]
[BlackElo "2682"]
[TimeControl "180+1"]
[EndTime "9:47:16 PDT"]
[Termination "Alexchess1984 won by resignation"]

1. Nf3 {[%clk 0:03:00.9]} 1... e6 {[%clk 0:02:54.6]} 2. g3 {[%clk 0:03:01.3]}
2... d5 {[%clk 0:02:53.1]} 3. Bg2 {[%clk 0:03:01.8]} 3... Nf6 {[%clk 0:02:53.2]}
4. O-O {[%clk 0:03:02.3]} 4... Be7 {[%clk 0:02:53.2]} 5. d3 {[%clk 0:03:00.6]}
5... O-O {[%clk 0:02:53.8]} 6. Nbd2 {[%clk 0:03:00.3]} 6... c5 {[%clk
0:02:52.3]} 7. e4 {[%clk 0:03:00.4]} 7... Nc6 {[%clk 0:02:50.3]} 8. Re1 {[%clk
0:02:58.9]} 8... dxe4 {[%clk 0:02:44.7]} 9. dxe4 {[%clk 0:02:59.8]} 9... e5
{[%clk 0:02:44.9]} 10. c3 {[%clk 0:02:56.5]} 10... Be6 {[%clk 0:02:44.1]} 11.
Bf1 {[%clk 0:02:54]} 11... Qc8 {[%clk 0:02:37.7]} 12. Nc4 {[%clk 0:02:44.5]}
12... Qc7 {[%clk 0:02:32.4]} 13. Qc2 {[%clk 0:02:37.6]} 13... b5 {[%clk
0:02:29.3]} 14. Ne3 {[%clk 0:02:34.6]} 14... a6 {[%clk 0:02:28.3]} 15. a4 {[%clk
0:02:33.7]} 15... Qb7 {[%clk 0:02:27.6]} 16. Ng5 {[%clk 0:02:25.4]} 16... Bd7
{[%clk 0:02:24.4]} 17. Bg2 {[%clk 0:02:17.7]} 17... h6 {[%clk 0:02:22.8]} 18.
Nf3 {[%clk 0:02:12.4]} 18... Be6 {[%clk 0:02:20.8]} 19. Nh4 {[%clk 0:02:09.8]}
19... c4 {[%clk 0:02:13.1]} 20. Nd5 {[%clk 0:02:02.2]} 20... Rfd8 {[%clk
0:02:06.4]} 21. Ne3 {[%clk 0:01:50.9]} 21... Bf8 {[%clk 0:02:02]} 22. axb5
{[%clk 0:01:36.1]} 22... axb5 {[%clk 0:02:00.8]} 23. Rxa8 {[%clk 0:01:37]} 23...
Rxa8 {[%clk 0:02:01]} 24. Nd5 {[%clk 0:01:35.5]} 24... Ne8 {[%clk 0:01:44.4]}
25. Nf5 {[%clk 0:01:31.5]} 25... Ne7 {[%clk 0:01:42.7]} 26. Qd1 {[%clk
0:01:13.3]} 26... Nxd5 {[%clk 0:01:25]} 27. exd5 {[%clk 0:01:07.3]} 27... Bxf5
{[%clk 0:01:24.9]} 28. d6 {[%clk 0:01:07.8]} 28... e4 {[%clk 0:01:24.9]} 29. d7
{[%clk 0:00:23.4]} 29... Qxd7 {[%clk 0:01:23]} 0-1

[Event "Early-Titled-Tuesday-Blitz-April-16-2024"]
[Site "Chess.com"]
[Date "2024.04.16"]
[Round "9"]
[White "DarZay"]
[Black "HighLawView"]
[Result "0-1"]
[WhiteElo "2301"]
[BlackElo "2128"]
[TimeControl "180+1"]
[EndTime "9:47:17 PDT"]
[Termination "HighLawView won by checkmate"]

1. e4 {[%clk 0:02:52.1]} 1... e5 {[%clk 0:02:59]} 2. Nf3 {[%clk 0:02:50.5]} 2...
Nf6 {[%clk 0:02:56.8]} 3. Nxe5 {[%clk 0:02:47.4]} 3... Nc6 {[%clk 0:02:56.2]} 4.
Nxc6 {[%clk 0:02:46.4]} 4... dxc6 {[%clk 0:02:55.2]} 5. f3 {[%clk 0:02:35.2]}
5... Bc5 {[%clk 0:02:40.3]} 6. c3 {[%clk 0:02:33.7]} 6... O-O {[%clk 0:02:00]}
7. d4 {[%clk 0:02:32.9]} 7... Nxe4 {[%clk 0:01:48.8]} 8. fxe4 {[%clk 0:02:27.1]}
8... Qh4+ {[%clk 0:01:48]} 9. g3 {[%clk 0:02:22.4]} 9... Qxe4+ {[%clk
0:01:46.9]} 10. Qe2 {[%clk 0:02:22]} 10... Qxh1 {[%clk 0:01:44.5]} 11. dxc5
{[%clk 0:02:21.7]} 11... Bh3 {[%clk 0:01:41.3]} 12. Kf2 {[%clk 0:02:15.5]} 12...
Rfe8 {[%clk 0:01:11.4]} 13. Qd3 {[%clk 0:01:43.4]} 13... Rad8 {[%clk 0:01:06]}
14. Qc4 {[%clk 0:01:42.4]} 14... Qxh2+ {[%clk 0:01:01.7]} 15. Kf3 {[%clk
0:01:42.7]} 15... Rd1 {[%clk 0:00:50.2]} 16. Bxh3 {[%clk 0:01:34.5]} 16... Qxh3
{[%clk 0:00:46.5]} 17. Bf4 {[%clk 0:01:31.6]} 17... Rf1+ {[%clk 0:00:43.2]} 18.
Qxf1 {[%clk 0:01:31.1]} 18... Qxf1+ {[%clk 0:00:44.1]} 19. Kg4 {[%clk
0:01:30.9]} 19... g6 {[%clk 0:00:41.7]} 20. b4 {[%clk 0:01:21.8]} 20... h5+
{[%clk 0:00:40.4]} 21. Kg5 {[%clk 0:01:21.4]} 21... Qh3 {[%clk 0:00:32.2]} 22.
Nd2 {[%clk 0:01:18.3]} 22... Kg7 {[%clk 0:00:27.5]} 23. Bxc7 {[%clk 0:01:11.9]}
23... Qg4# {[%clk 0:00:20.4]} 0-1

[Event "Early-Titled-Tuesday-Blitz-April-16-2024"]
[Site "Chess.com"]
[Date "2024.04.16"]
[Round "9"]
[White "AlainBruxelles"]
[Black "GMAneta"]
[Result "0-1"]
[WhiteElo "2354"]
[BlackElo "2547"]
[TimeControl "180+1"]
[EndTime "9:47:22 PDT"]
[Termination "GMAneta won by checkmate"]

1. e4 {[%clk 0:02:58.4]} 1... c5 {[%clk 0:02:59.6]} 2. Nf3 {[%clk 0:02:57.8]}
2... Nc6 {[%clk 0:02:49.5]} 3. Nc3 {[%clk 0:02:56.8]} 3... g6 {[%clk 0:02:46]}
4. Bb5 {[%clk 0:02:54.4]} 4... Nd4 {[%clk 0:02:44.4]} 5. Nxd4 {[%clk 0:02:49.4]}
5... cxd4 {[%clk 0:02:44.2]} 6. Ne2 {[%clk 0:02:50]} 6... Bg7 {[%clk 0:02:44.4]}
7. O-O {[%clk 0:02:48.4]} 7... a6 {[%clk 0:02:43.7]} 8. Ba4 {[%clk 0:02:44.4]}
8... b5 {[%clk 0:02:42.9]} 9. Bb3 {[%clk 0:02:45]} 9... Bb7 {[%clk 0:02:43]} 10.
d3 {[%clk 0:02:45.6]} 10... e6 {[%clk 0:02:41.8]} 11. f4 {[%clk 0:02:45.4]}
11... Ne7 {[%clk 0:02:41.7]} 12. Ng3 {[%clk 0:02:39.1]} 12... f5 {[%clk
0:02:40.1]} 13. exf5 {[%clk 0:02:33]} 13... gxf5 {[%clk 0:02:38.7]} 14. Qh5+
{[%clk 0:02:30.9]} 14... Ng6 {[%clk 0:02:38.5]} 15. Bd2 {[%clk 0:02:21.9]} 15...
Qf6 {[%clk 0:02:27.4]} 16. Rae1 {[%clk 0:02:18.3]} 16... O-O {[%clk 0:02:24.7]}
17. Bb4 {[%clk 0:02:08.3]} 17... Rf7 {[%clk 0:02:23.7]} 18. Bd6 {[%clk 0:02:00]}
18... Qh4 {[%clk 0:02:20.4]} 19. Qe2 {[%clk 0:01:51.4]} 19... Rc8 {[%clk
0:02:08.5]} 20. a4 {[%clk 0:01:46.6]} 20... Kh8 {[%clk 0:02:07.4]} 21. axb5
{[%clk 0:01:45.6]} 21... axb5 {[%clk 0:02:08.3]} 22. Ra1 {[%clk 0:01:42.9]}
22... Bh6 {[%clk 0:02:08]} 23. Qf2 {[%clk 0:01:36.6]} 23... Rg8 {[%clk
0:02:02.2]} 24. Qxd4+ {[%clk 0:01:33.6]} 24... Bg7 {[%clk 0:02:01.2]} 25. Qf2
{[%clk 0:01:26.5]} 25... Bxb2 {[%clk 0:02:00.2]} 26. Ra7 {[%clk 0:01:27.1]}
26... Bc6 {[%clk 0:01:58.7]} 27. d4 {[%clk 0:01:09.5]} 27... Qf6 {[%clk
0:01:57.5]} 28. Rd1 {[%clk 0:01:06.2]} 28... h6 {[%clk 0:01:52.4]} 29. Qe3
{[%clk 0:00:56.8]} 29... Kh7 {[%clk 0:01:42.6]} 30. Ra2 {[%clk 0:00:55.7]} 30...
Nh4 {[%clk 0:01:40.1]} 31. Rxb2 {[%clk 0:00:53.1]} 31... Nxg2 {[%clk 0:01:39.9]}
32. Qe5 {[%clk 0:00:47.2]} 32... Qh4 {[%clk 0:01:36.5]} 33. d5 {[%clk
0:00:45.6]} 33... Rxg3 {[%clk 0:01:35.6]} 34. hxg3 {[%clk 0:00:42.2]} 34... Qxg3
{[%clk 0:01:36.5]} 35. dxc6 {[%clk 0:00:20.9]} 35... Ne3+ {[%clk 0:01:34.8]} 36.
Kh1 {[%clk 0:00:17.1]} 36... Qg2# {[%clk 0:01:34.5]} 0-1

[Event "Early-Titled-Tuesday-Blitz-April-16-2024"]
[Site "Chess.com"]
[Date "2024.04.16"]
[Round "9"]
[White "Seochesspie"]
[Black "shimastream"]
[Result "0-1"]
[WhiteElo "2864"]
[BlackElo "3036"]
[TimeControl "180+1"]
[EndTime "9:47:23 PDT"]
[Termination "shimastream won by resignation"]

1. e4 {[%clk 0:03:00.9]} 1... b6 {[%clk 0:02:56.8]} 2. d4 {[%clk 0:02:57.4]}
2... Bb7 {[%clk 0:02:57.7]} 3. Nd2 {[%clk 0:02:55.9]} 3... e6 {[%clk 0:02:57.4]}
4. Ngf3 {[%clk 0:02:55.7]} 4... c5 {[%clk 0:02:56.6]} 5. Bd3 {[%clk 0:02:53.4]}
5... Nf6 {[%clk 0:02:54.1]} 6. O-O {[%clk 0:02:52.3]} 6... d5 {[%clk 0:02:52.8]}
7. e5 {[%clk 0:02:47.8]} 7... Nfd7 {[%clk 0:02:52.2]} 8. c3 {[%clk 0:02:43.9]}
8... Nc6 {[%clk 0:02:51.9]} 9. Re1 {[%clk 0:02:33.1]} 9... Be7 {[%clk
0:02:48.9]} 10. Nf1 {[%clk 0:02:32]} 10... g5 {[%clk 0:02:49.4]} 11. Be3 {[%clk
0:02:31.7]} 11... h5 {[%clk 0:02:48.6]} 12. Rc1 {[%clk 0:02:27.7]} 12... g4
{[%clk 0:02:45.5]} 13. N3d2 {[%clk 0:02:27.8]} 13... Qc7 {[%clk 0:02:46.2]} 14.
Ng3 {[%clk 0:02:25]} 14... O-O-O {[%clk 0:02:44.6]} 15. Ne2 {[%clk 0:02:18.4]}
15... Rdg8 {[%clk 0:02:38]} 16. a3 {[%clk 0:02:16.4]} 16... f6 {[%clk
0:02:35.2]} 17. exf6 {[%clk 0:02:12.4]} 17... Bd6 {[%clk 0:02:35.5]} 18. g3
{[%clk 0:02:06.4]} 18... Nxf6 {[%clk 0:02:35.3]} 19. c4 {[%clk 0:02:05.9]} 19...
h4 {[%clk 0:02:33.3]} 20. dxc5 {[%clk 0:02:00.5]} 20... bxc5 {[%clk 0:02:32.1]}
21. cxd5 {[%clk 0:01:58.5]} 21... hxg3 {[%clk 0:02:28.4]} 22. fxg3 {[%clk
0:01:38.9]} 22... Nxd5 {[%clk 0:02:24.8]} 23. Bf2 {[%clk 0:01:38.7]} 23... Ne5
{[%clk 0:02:23.7]} 24. Be4 {[%clk 0:01:32.3]} 24... Kb8 {[%clk 0:02:12.7]} 25.
Qc2 {[%clk 0:01:28.1]} 25... Qf7 {[%clk 0:01:24]} 26. Bxc5 {[%clk 0:01:21.1]}
26... Bxc5+ {[%clk 0:01:24.1]} 27. Qxc5 {[%clk 0:01:20.9]} 27... Qh5 {[%clk
0:01:11.4]} 28. Nf1 {[%clk 0:01:00.8]} 28... Nf3+ {[%clk 0:01:00.7]} 29. Bxf3
{[%clk 0:01:00.8]} 29... gxf3 {[%clk 0:01:01.6]} 30. Nd4 {[%clk 0:01:01.1]}
30... Rxg3+ {[%clk 0:00:53.8]} 31. hxg3 {[%clk 0:00:51.5]} 31... Qh1+ {[%clk
0:00:52.6]} 0-1